bitfinex/quotes_ETHUSD_20241006
["timestamp","ask_amount","ask_price","bid_price","bid_amount"]
[1728237831900,0.8119,2446.6,2446.3,2.56173288]
[1728237832101,0.8119,2446.6,2446.4,2.56173288]
[1728237834611,0.8119,2446.6,2446.5,2.56173288]
[1728237834811,0.8119,2446.6,2446.4,2.56173288]
[1728237835619,0.8119,2446.6,2446.5,2.56173288]
[1728237837211,0.8119,2446.6,2446.4,2.56173288]
[1728237837837,0.8119,2446.6,2446.5,2.56173288]
[1728237838003,0.8119,2446.6,2446.4,2.56173288]
[1728237840999,4.08174,2446.6,2446.4,2.56173288]
[1728237841225,4.08179,2446.6,2446.4,2.56173288]
[1728237841451,4.08179,2446.6,2446.4,2.57059185]
[1728237841649,0.8119,2446.6,2446.5,2.57059185]
[1728237842935,0.8119,2446.6,2446.4,2.57059185]
[1728237843456,4.08174,2446.6,2446.5,2.57059185]
[1728237843960,3.26997,2446.5,2446.4,2.57059185]
[1728237844122,4.07467,2446.5,2446.4,2.57059185]
[1728237845424,4.07467,2446.5,2446.3,2.57059185]
[1728237846485,4.07467,2446.5,2446.3,2.57211643]
[1728237851550,4.07467,2446.5,2446.3,2.57159045]
[1728237854142,4.07467,2446.5,2446.2,2.57159045]
[1728237855085,4.07467,2446.5,2446.3,2.57159045]
[1728237855851,4.07467,2446.5,2446.2,2.57159045]
[1728237856348,4.07467,2446.5,2446.4,2.14280938]
[1728237856549,4.07467,2446.5,2446.2,2.57127569]
[1728237857588,4.07467,2446.5,2446.3,2.57127569]
[1728237858092,4.07467,2446.5,2446.2,2.57127569]
[1728237858588,4.07467,2446.5,2446.4,2.14256006]
[1728237859286,4.07467,2446.5,2446.2,2.57127569]
[1728237860508,4.07467,2446.5,2446.4,2.14249304]
[1728237860675,4.07467,2446.5,2446.4,2.14279095]
[1728237861564,4.07467,2446.5,2446.4,2.14274059]
[1728237861904,4.07467,2446.5,2446.2,2.57128871]
[1728237862060,4.07467,2446.5,2446.4,2.14275117]
[1728237862470,4.07467,2446.5,2446.2,2.57128871]
[1728237863002,4.07467,2446.5,2446.4,2.14274467]
[1728237863505,4.07467,2446.5,2446.2,2.57128871]
[1728237864193,4.07467,2446.5,2446.4,2.14273035]
[1728237864676,4.07467,2446.5,2446.2,2.57128871]
[1728237864873,4.07467,2446.5,2446.4,2.1428467]
[1728237865700,4.07467,2446.5,2446.2,2.57128871]
[1728237866579,4.07467,2446.5,2446.2,2.57120883]
[1728237866580,0.8047,2446.5,2446.2,2.57120883]
[1728237867103,0.8047,2446.5,2446.4,2.1426369]
[1728237867310,0.8047,2446.5,2446.2,2.57120883]
[1728237868305,0.8047,2446.5,2446.3,2.57120883]
[1728237868478,0.8047,2446.5,2446.2,2.57120883]
[1728237868675,0.8047,2446.5,2446.4,2.14262403]
[1728237868881,0.8047,2446.5,2446.2,2.57120883]
[1728237869280,0.8047,2446.5,2446.4,2.14262711]
[1728237869692,0.8047,2446.5,2446.2,2.57120883]
[1728237870102,0.8047,2446.5,2446.4,2.14249619]
[1728237870264,0.8047,2446.5,2446.2,2.57120883]
[1728237870607,0.0376156,2446.8,2446.3,2.57120883]
[1728237870910,0.0376156,2446.8,2446.7,1.71384381]
[1728237871069,0.0376156,2446.8,2446.7,2.14230477]
[1728237871905,0.0376156,2446.8,2446.6,2.14230477]
[1728237872082,0.0376156,2446.8,2446.7,1.71355433]
[1728237873118,0.0376156,2446.8,2446.6,2.14230477]
[1728237873281,0.0376156,2446.8,2446.7,2.14230477]
[1728237874479,0.0376156,2446.8,2446.7,1.71360391]
[1728237875582,0.0376156,2446.8,2446.6,2.95450477]
[1728237875806,0.0376156,2446.8,2446.7,2.14230477]
[1728237876581,0.0376156,2446.8,2446.7,2.14205775]
[1728237877409,0.0376156,2446.8,2446.7,6.68008846]
[1728237878122,0.0376156,2446.8,2446.7,9.80055776]
[1728237878621,0.0376156,2446.8,2446.7,9.79854359]
[1728237881332,0.0376156,2446.8,2446.7,7.23008846]
[1728237881542,0.0376156,2446.8,2446.7,9.79824966]
[1728237883554,0.0376156,2446.8,2446.7,7.23008846]
[1728237884416,3.9709456,2447.3,2446.8,3.26957]
[1728237884614,3.9709456,2447.3,2447.1,1.28362763]
[1728237885046,0.7020156,2447.3,2447.1,1.28362763]
[1728237889046,3.9709456,2447.3,2447.1,1.28362763]
[1728237890475,7.2399556,2447.3,2447.1,1.28362763]
[1728237890677,3.26904,2447.2,2447.1,1.28362763]
[1728237892193,3.26904,2447.2,2447.0,1.28362763]
[1728237892690,3.9709456,2447.3,2447.0,1.28362763]
[1728237892896,3.9709456,2447.3,2447.1,1.28362763]
[1728237893350,7.2399456,2447.3,2447.1,1.28362763]
[1728237893789,3.26904,2447.2,2447.1,1.28362763]
[1728237894191,3.26904,2447.2,2447.0,1.28362763]
[1728237898472,3.9709456,2447.3,2447.0,1.28362763]
[1728237898805,7.2399756,2447.3,2447.1,1.28362763]
[1728237899295,3.26904,2447.2,2447.1,1.28362763]
[1728237899658,3.26904,2447.2,2447.0,1.28362763]
[1728237900801,4.03957,2447.1,2447.0,1.28362763]
[1728237901502,0.7704,2447.1,2447.0,1.28362763]
[1728237905408,3.26904,2447.2,2447.0,1.28362763]
[1728237905907,4.06815,2447.3,2447.0,1.28362763]
[1728237907730,4.06815,2447.3,2446.9,1.71150351]
[1728237907731,4.06815,2447.3,2447.1,1.28362763]
[1728237907887,4.06815,2447.3,2447.0,1.28362763]
[1728237908221,4.06815,2447.3,2447.1,1.28362763]
[1728237908522,4.06815,2447.3,2447.0,1.28362763]
[1728237909085,4.06815,2447.3,2447.1,1.28362763]
[1728237910336,4.06815,2447.3,2447.0,1.28362763]
[1728237910514,4.06815,2447.3,2447.1,1.28362763]
[1728237910884,4.06815,2447.3,2447.2,1.28362763]
[1728237911108,4.06815,2447.3,2447.1,1.71150351]
[1728237911322,4.06815,2447.3,2447.2,1.28351958]
[1728237911636,0.7992,2447.3,2447.2,1.28351958]
[1728237912906,0.7992,2447.3,2447.1,1.71150351]
[1728237913245,0.7992,2447.3,2447.2,1.28384694]
[1728237913553,4.0681,2447.3,2447.2,1.28384694]
[1728237913702,4.0681,2447.3,2447.1,1.71150351]
[1728237914337,4.0681,2447.3,2447.2,1.71150351]
[1728237914950,4.0681,2447.3,2447.1,1.71150351]
[1728237915309,4.0681,2447.3,2447.2,1.28427784]
[1728237915547,4.0681,2447.3,2447.2,1.71150351]
[1728237915845,4.49448427,2447.3,2447.2,1.2845817]
[1728237916051,3.69528427,2447.3,2447.1,1.2845817]
[1728237916351,4.06824,2447.2,2447.0,1.71150351]
[1728237916521,3.26917,2447.1,2447.0,2.14033992]
[1728237919855,3.26917,2447.1,2447.0,2.14245864]
[1728237920762,3.26939,2447.0,2446.8,2.57095037]
[1728237922770,4.06029,2447.0,2446.9,2.57095037]
[1728237922968,3.26944,2446.9,2446.7,2.57095037]
[1728237924856,3.26944,2446.9,2446.7,2.57429107]
[1728237925423,3.26944,2446.9,2446.6,2.57429107]
[1728237925735,3.26944,2446.9,2446.7,2.57429107]
[1728237925927,3.26944,2446.9,2446.6,2.57429107]
[1728237926261,3.26944,2446.9,2446.7,2.57429107]
[1728237926556,3.26944,2446.9,2446.6,2.57429107]
[1728237927362,3.26957,2446.8,2446.6,2.57429107]
[1728237929224,4.06028,2447.0,2446.6,2.57429107]
[1728237929519,3.26948,2446.9,2446.8,2.14448527]
[1728237929723,3.26948,2446.9,2446.8,2.14436112]
[1728237936269,4.06028,2447.0,2446.8,2.14436112]
[1728237936270,3.26938,2447.0,2446.8,2.90276112]
[1728237936470,3.26938,2447.0,2446.9,1.71478416]
[1728237936857,3.26938,2447.0,2446.8,2.90276112]
[1728237937185,3.26938,2447.0,2446.9,1.71475997]
[1728237937496,3.26938,2447.0,2446.8,2.90276112]
[1728237937802,3.26913,2447.2,2446.9,1.7147533]
[1728237938098,0.7526,2447.3,2447.0,1.7147533]
[1728237938099,4.02152,2447.3,2447.0,1.7147533]
[1728237938258,3.26892,2447.3,2447.2,1.28585839]
[1728237939063,3.26892,2447.3,2447.1,1.7147533]
[1728237939373,6.5379,2447.3,2447.1,1.7147533]
[1728237939884,6.5379,2447.3,2447.2,1.28589784]
[1728237941296,3.26892,2447.3,2447.2,1.28589784]
[1728237942995,6.53792,2447.3,2447.2,1.7147533]
[1728237945472,3.26892,2447.3,2447.2,1.7147533]
[1728237948794,3.90885736,2447.5,2447.2,1.7147533]
[1728237949106,3.26871,2447.5,2447.4,1.2854542]
[1728237950606,6.53744,2447.5,2447.3,1.71393894]
[1728237950962,3.26871,2447.5,2447.4,1.71393894]
[1728237951314,3.26871,2447.5,2447.2,2.14217104]
[1728237951315,3.26871,2447.5,2447.3,1.71393894]
[1728237951604,3.2687,2447.5,2447.3,1.71393894]
[1728237952102,3.2687,2447.5,2447.4,1.71393894]
[1728237952315,3.2687,2447.5,2447.4,1.28524563]
[1728237952467,6.53745,2447.5,2447.4,1.28512024]
[1728237952668,6.53745,2447.5,2447.3,1.71393894]
[1728237952863,3.2687,2447.5,2447.3,1.71393894]
[1728237953179,3.26877,2447.4,2447.3,2.14187878]
[1728237953490,3.26877,2447.4,2447.3,1.71345922]
[1728237953691,6.53742,2447.5,2447.3,1.71345922]
[1728237953897,3.2687,2447.5,2447.4,1.28509234]
[1728237954065,3.26877,2447.4,2447.3,1.71345922]
[1728237955160,3.26877,2447.4,2447.2,2.14166972]
[1728237955466,3.26877,2447.4,2447.3,1.7133385]
[1728237956297,3.26877,2447.4,2447.2,2.26764584]
[1728237956505,3.26877,2447.4,2447.3,1.28511316]
[1728237957204,3.26877,2447.4,2447.2,1.7133385]
[1728237957380,3.26877,2447.4,2447.3,1.28501656]
[1728237957781,3.26877,2447.4,2447.2,1.7133385]
[1728237957988,3.26877,2447.4,2447.3,1.28509008]
[1728237958188,3.26877,2447.4,2447.2,1.7133385]
[1728237958397,3.26877,2447.4,2447.3,1.7133385]
[1728237959012,3.26877,2447.4,2447.2,1.7133385]
[1728237959217,3.26877,2447.4,2447.3,1.7133385]
[1728237959431,3.26877,2447.4,2447.3,1.28499407]
[1728237959721,3.26877,2447.4,2447.3,1.28498486]
[1728237959879,3.26877,2447.4,2447.2,1.7133385]
[1728237960277,3.26877,2447.4,2447.3,1.7133385]
[1728237961440,3.26877,2447.4,2447.2,1.7133385]
[1728237961604,6.53762,2447.4,2447.3,1.28485321]
[1728237961801,3.26877,2447.4,2447.3,1.28485321]
[1728237963199,3.26877,2447.4,2447.2,1.7133385]
[1728237963631,6.55433587,2447.6,2447.3,1.7133385]
[1728237963842,3.26864,2447.5,2447.4,1.28470358]
[1728237964514,11.35840944,2447.8,2447.4,0.7805]
[1728237964850,3.26839,2447.7,2447.5,1.28450183]
[1728237965965,3.26839,2447.7,2447.6,1.28450183]
[1728237966176,3.26787,2448.1,2447.6,1.28450183]
[1728237966177,3.26806,2448.0,2447.6,1.66233586]
[1728237966472,3.26806,2448.0,2447.8,1.28388191]
[1728237967019,6.53612,2448.0,2447.8,1.28388191]
[1728237967422,3.26806,2448.0,2447.8,1.28388191]
[1728237967663,6.53614,2448.0,2447.8,1.28388191]
[1728237968225,6.53611,2448.0,2447.8,1.28388191]
[1728237968658,3.26805,2448.0,2447.7,2.06438191]
[1728237968827,3.26805,2448.0,2447.8,1.28388191]
[1728237969027,3.26805,2448.0,2447.7,3.12324624]
[1728237969028,0.63999696,2448.1,2447.9,1.28388191]
[1728237969322,0.63999696,2448.1,2447.8,1.28388191]
[1728237969323,3.26784,2448.1,2447.8,1.28388191]
[1728237969725,6.53576,2448.1,2447.8,1.28388191]
[1728237970347,3.26784,2448.1,2447.8,1.28388191]
[1728237970550,3.26797,2448.0,2447.8,1.28388191]
[1728237970729,3.26797,2448.0,2447.7,2.69378965]
[1728237970930,3.26797,2448.0,2447.8,0.47849622]
[1728237972283,3.26784,2448.1,2447.8,0.47849622]
[1728237972581,6.5358,2448.1,2447.8,0.47849622]
[1728237972933,3.26784,2448.1,2447.8,1.76237813]
[1728237973154,3.26784,2448.1,2447.8,0.47849622]
[1728237974371,6.53576,2448.1,2447.8,0.47849622]
[1728237974957,3.26784,2448.1,2447.8,0.47849622]
[1728237975457,6.53579,2448.1,2447.8,0.47849622]
[1728237975991,3.26799,2448.0,2447.8,0.47849622]
[1728237977495,3.26799,2448.0,2447.7,2.69378965]
[1728237977496,3.26799,2448.0,2447.7,1.40990774]
[1728237977792,3.26799,2448.0,2447.7,2.69378965]
[1728237978186,3.26799,2448.0,2447.7,1.40990774]
[1728237978387,3.26799,2448.0,2447.7,2.69378965]
[1728237978965,3.26799,2448.0,2447.7,1.40990774]
[1728237979160,3.26784,2448.1,2447.9,0.8124]
[1728237979865,3.26784,2448.1,2447.9,2.09628191]
[1728237980065,3.26784,2448.1,2447.9,0.8124]
[1728237980290,6.53576,2448.1,2447.9,0.8124]
[1728237980486,3.26784,2448.1,2447.9,0.8124]
[1728237981117,3.26784,2448.1,2447.9,2.09628191]
[1728237981279,3.26784,2448.1,2447.9,0.8124]
[1728237981605,3.26784,2448.1,2447.9,2.09628191]
[1728237981816,2.68615,2448.2,2448.1,0.7618]
[1728237981962,3.26758,2448.3,2448.1,0.7618]
[1728237982159,3.26752,2448.4,2448.1,0.7618]
[1728237982967,6.53455,2448.6,2448.1,0.7618]
[1728237983268,6.5345,2448.6,2448.2,0.55539863]
[1728237983597,6.53454,2448.6,2448.2,1.83928054]
[1728237984003,3.26734,2448.5,2448.2,1.83928054]
[1728237984173,3.26745,2448.4,2448.2,0.55539863]
[1728237984377,3.26724,2448.6,2448.2,0.55539863]
[1728237984587,3.26731,2448.5,2448.2,0.55539863]
[1728237984899,3.26724,2448.6,2448.3,0.26010805]
[1728237985116,6.53448,2448.6,2448.3,1.02190805]
[1728237985264,3.26724,2448.6,2448.3,1.02190805]
[1728237990808,3.26697,2448.8,2448.3,1.02190805]
[1728237991005,6.53399,2448.8,2448.3,1.02190805]
[1728237991206,6.96103053,2448.8,2448.3,1.02190805]
[1728237991768,3.69401053,2448.8,2448.3,1.02190805]
[1728237992014,3.26705,2448.7,2448.3,1.02190805]
[1728237992241,3.26705,2448.7,2448.4,0.48449967]
[1728237994056,3.69401053,2448.8,2448.4,0.48449967]
[1728237994425,0.42704053,2448.8,2448.4,0.48449967]
[1728237994621,0.42704053,2448.8,2448.5,2.34956887]
[1728237994813,6.53344,2449.0,2448.5,2.34956887]
[1728237995166,3.26672,2449.0,2448.6,0.61014985]
[1728237995462,3.69369043,2449.0,2448.6,0.61014985]
[1728237995692,6.96046043,2449.0,2448.6,0.61014985]
[1728237995850,6.96040043,2449.0,2448.6,0.61014985]
[1728237996486,3.26686,2448.9,2448.6,0.61014985]
[1728237996852,3.26686,2448.9,2448.5,0.7871]
[1728237998283,3.11686,2448.9,2448.5,0.7871]
[1728237999147,3.26693,2448.8,2448.5,0.7871]
[1728238008778,3.69368043,2449.0,2448.5,0.7871]
[1728238008966,3.69368043,2449.0,2448.5,2.34956887]
[1728238010069,3.26677,2448.9,2448.5,2.34956887]
[1728238010952,3.26677,2448.9,2448.5,2.36996338]
[1728238011208,3.69368043,2449.0,2448.5,2.36996338]
[1728238011209,0.42698043,2449.0,2448.8,4.01979]
[1728238011371,0.1202357,2449.2,2449.0,0.7529]
[1728238012688,0.1202357,2449.2,2449.0,4.01953]
[1728238012892,0.1202357,2449.2,2449.1,0.55819989]
[1728238013054,0.1202357,2449.2,2449.0,0.7529]
[1728238016624,0.1202357,2449.2,2449.1,1.56246887]
[1728238016823,0.1202357,2449.2,2449.1,2.31536887]
[1728238017320,0.1202357,2449.2,2449.1,5.58186887]
[1728238017795,0.1202357,2449.2,2449.1,2.31536887]
[1728238017990,0.1202357,2449.2,2449.1,3.04490261]
[1728238018178,0.1202357,2449.2,2449.1,6.31140261]
[1728238019208,0.1202357,2449.2,2449.1,3.04490261]
[1728238020425,0.1202357,2449.2,2449.1,1.48243374]
[1728238020626,3.26659,2449.1,2448.9,2.4662385]
[1728238020784,3.26659,2449.1,2448.8,2.13106598]
[1728238020785,3.26659,2449.1,2448.8,1.7133385]
[1728238020980,3.26658,2449.1,2448.8,1.7133385]
[1728238021181,3.26677,2448.9,2448.7,2.4662385]
[1728238021385,3.26677,2448.9,2448.7,3.74560105]
[1728238021629,3.26677,2448.9,2448.7,1.7133385]
[1728238021630,3.2669,2448.8,2448.7,1.7133385]
[1728238021795,3.2669,2448.8,2448.5,1.7133385]
[1728238021796,0.7996,2448.7,2448.5,1.7133385]
[1728238022122,3.26717,2448.6,2448.3,1.7133385]
[1728238022503,3.26717,2448.6,2448.2,2.5301385]
[1728238022827,3.26717,2448.6,2448.3,2.33558849]
[1728238023027,0.7996,2448.7,2448.3,2.33558849]
[1728238023222,4.06665,2448.7,2448.3,2.33558849]
[1728238024631,0.7996,2448.7,2448.3,2.33558849]
[1728238024938,4.06664,2448.7,2448.3,2.33558849]
[1728238025487,0.7996,2448.7,2448.3,2.33558849]
[1728238025683,3.26717,2448.6,2448.3,2.33558849]
[1728238026127,0.7996,2448.7,2448.4,1.7133385]
[1728238026293,4.06665,2448.7,2448.4,1.7133385]
[1728238026713,4.06665,2448.7,2448.3,2.33558849]
[1728238026919,4.06665,2448.7,2448.4,1.7133385]
[1728238030257,0.7996,2448.7,2448.4,1.7133385]
[1728238033037,0.7996,2448.7,2448.5,1.7133385]
[1728238034353,0.7996,2448.7,2448.3,2.75733535]
[1728238034354,0.7996,2448.7,2448.4,1.7133385]
[1728238035266,4.06666,2448.7,2448.4,1.7133385]
[1728238035655,4.06666,2448.7,2448.5,1.7133385]
[1728238035971,4.06666,2448.7,2448.4,1.7133385]
[1728238036131,4.06666,2448.7,2448.5,1.7133385]
[1728238036326,3.26717,2448.6,2448.5,1.7133385]
[1728238036531,3.26717,2448.6,2448.4,1.7133385]
[1728238036764,3.26717,2448.6,2448.3,2.13521126]
[1728238036765,3.26717,2448.6,2448.5,1.7133385]
[1728238037200,3.26717,2448.6,2448.4,1.7133385]
[1728238039159,3.26717,2448.6,2448.5,1.7133385]
[1728238040603,0.7996,2448.7,2448.5,1.7133385]
[1728238041677,0.7996,2448.7,2448.4,1.7133385]
[1728238042974,0.7996,2448.7,2448.5,1.7133385]
[1728238044763,0.7996,2448.7,2448.4,1.7133385]
[1728238045111,0.7996,2448.7,2448.5,1.7133385]
[1728238046808,4.05862,2449.0,2448.5,2.4775385]
[1728238046963,4.1785757,2449.2,2448.7,1.56246887]
[1728238047166,0.1202357,2449.2,2448.8,0.7642]
[1728238047374,0.1202357,2449.2,2448.8,2.4775385]
[1728238047600,0.1202357,2449.2,2448.8,5.7443185]
[1728238047814,0.1202357,2449.2,2448.9,1.7133385]
[1728238048333,3.3866157,2449.2,2448.9,1.7133385]
[1728238048633,0.1202357,2449.2,2448.9,1.7133385]
[1728238050236,0.1202357,2449.2,2448.8,2.4775385]
[1728238050540,0.1202357,2449.2,2448.9,1.7133385]
[1728238051400,0.1202357,2449.2,2448.8,3.7484656]
[1728238051595,0.1202357,2449.2,2448.9,1.7133385]
[1728238052338,0.1202357,2449.2,2448.8,3.7484656]
[1728238053012,0.1202357,2449.2,2448.9,1.7133385]
[1728238053239,0.1202357,2449.2,2448.9,3.09252483]
[1728238054097,0.1202357,2449.2,2448.9,1.37918633]
[1728238054302,0.1202357,2449.2,2448.9,3.09252483]
[1728238055208,0.1202357,2449.2,2448.9,4.64594633]
[1728238055406,0.1202357,2449.2,2448.9,6.35928483]
[1728238055737,0.1202357,2449.2,2449.1,6.54230737]
[1728238055949,0.1202357,2449.2,2449.1,8.27689027]
[1728238056101,0.1202357,2449.2,2449.1,6.14316887]
[1728238057648,0.1202357,2449.2,2449.1,6.22480826]
[1728238058506,0.1202357,2449.2,2449.1,8.77912412]
[1728238058703,0.1202357,2449.2,2449.1,7.85526481]
[1728238058906,0.1202357,2449.2,2449.1,10.40952461]
[1728238060053,0.1202357,2449.2,2449.1,7.85526481]
[1728238060747,0.1202357,2449.2,2449.1,10.81690862]
[1728238060949,0.1202357,2449.2,2449.1,10.81678134]
[1728238061246,0.1202357,2449.2,2449.1,10.81684414]
[1728238061941,0.1202357,2449.2,2449.1,10.40774414]
[1728238063547,0.1202357,2449.2,2449.1,7.85526481]
[1728238065444,0.1202357,2449.2,2449.1,10.40774414]
[1728238065645,0.1202357,2449.2,2449.1,7.85526481]
[1728238067533,0.1202357,2449.2,2449.1,7.9369023]
[1728238067913,0.1202357,2449.2,2449.1,7.85526481]
[1728238068125,0.1202357,2449.2,2449.1,10.4045873]
[1728238068514,0.1202357,2449.2,2449.1,7.85526481]
[1728238074136,0.1202357,2449.2,2449.1,9.97746383]
[1728238075661,0.1202357,2449.2,2449.1,7.85526481]
[1728238076158,0.1202357,2449.2,2449.1,9.97727409]
[1728238077361,0.1202357,2449.2,2449.1,9.9773095]
[1728238077673,0.1202357,2449.2,2449.1,7.85526481]
[1728238077959,0.1202357,2449.2,2449.1,9.97720762]
[1728238078475,0.1202357,2449.2,2449.1,9.97721175]
[1728238078675,0.1202357,2449.2,2449.1,7.85526481]
[1728238078972,0.1202357,2449.2,2449.1,9.97726611]
[1728238079335,0.1202357,2449.2,2449.1,7.85526481]
[1728238079783,0.1202357,2449.2,2449.1,9.9773932]
[1728238080069,0.1202357,2449.2,2449.1,7.85526481]
[1728238084642,0.1202357,2449.2,2449.1,13.81200272]
[1728238084995,0.8226,2450.4,2450.0,6.53044]
[1728238085287,0.8226,2450.4,2450.0,7.33973089]
[1728238085443,0.8226,2450.4,2450.0,4.07451089]
[1728238085640,0.8226,2450.3,2449.9,1.56246887]
[1728238085880,0.8226,2450.3,2449.9,3.26543]
[1728238086193,0.8226,2450.2,2449.6,1.69818962]
[1728238086497,0.8226,2449.9,2449.5,3.26594]
[1728238086669,0.8226,2449.9,2449.5,4.96412962]
[1728238086874,0.8226,2449.9,2449.5,3.26594]
[1728238087204,0.8226,2449.9,2449.5,1.69818962]
[1728238089292,0.8226,2449.9,2449.6,1.69818962]
[1728238090368,0.8226,2449.9,2449.5,1.69818962]
[1728238090573,0.8226,2449.9,2449.6,1.69818962]
[1728238091497,0.8226,2449.9,2449.5,4.96410962]
[1728238091685,0.8226,2449.9,2449.6,1.69818962]
[1728238092254,0.8226,2449.9,2449.7,1.69818962]
[1728238092458,0.8226,2449.9,2449.6,1.69818962]
[1728238092699,0.8226,2449.9,2449.7,1.69818962]
[1728238093261,0.8226,2449.9,2449.6,1.69818962]
[1728238093707,0.8226,2449.9,2449.7,1.69818962]
[1728238096562,0.8226,2449.9,2449.8,1.69818962]
[1728238097866,0.8226,2449.9,2449.7,2.12532557]
[1728238098093,0.8226,2449.9,2449.8,1.70439392]
[1728238099792,0.8226,2449.9,2449.8,2.13246267]
[1728238101482,0.8226,2449.9,2449.7,5.8246452]
[1728238101802,0.8226,2449.9,2449.7,2.5589552]
[1728238102678,0.8226,2449.9,2449.8,3.26557]
[1728238105100,0.8226,2449.9,2449.8,5.40144748]
[1728238105304,0.8226,2449.9,2449.8,2.13598606]
[1728238105698,0.8226,2449.9,2449.6,5.82874048]
[1728238106019,0.8226,2449.9,2449.7,3.26568]
[1728238106302,0.8226,2449.9,2449.8,3.26557]
[1728238110592,0.8226,2449.9,2449.8,5.82894315]
[1728238110779,0.8226,2449.9,2449.8,3.26557]
[1728238110984,0.8226,2449.9,2449.8,5.82894315]
[1728238111390,0.8226,2449.9,2449.8,3.26557]
[1728238112328,0.8226,2449.9,2449.8,5.82894315]
[1728238114298,0.8226,2449.9,2449.8,3.26557]
[1728238114716,0.8226,2449.9,2449.8,5.82894315]
[1728238115186,0.8226,2449.9,2449.7,2.56337315]
[1728238115385,0.8226,2449.9,2449.8,2.13661942]
[1728238117690,0.8226,2449.9,2449.7,2.13661942]
[1728238117919,0.8226,2449.9,2449.8,1.70946327]
[1728238118790,0.8226,2449.9,2449.8,2.13661942]
[1728238120117,0.8226,2449.9,2449.8,1.70916654]
[1728238120296,0.8226,2449.9,2449.7,2.13661942]
[1728238120496,0.8226,2449.9,2449.8,2.13661942]
[1728238120712,0.8226,2449.9,2449.8,2.13623404]
[1728238120906,0.8226,2449.9,2449.7,2.56337315]
[1728238121537,0.8226,2449.9,2449.8,2.56337315]
[1728238123935,0.8226,2449.9,2449.7,3.26561]
[1728238124099,0.8226,2449.9,2449.8,5.82829423]
[1728238124299,0.8226,2449.9,2449.8,5.82836083]
[1728238125130,0.8226,2449.9,2449.8,2.56279083]
[1728238129768,0.8226,2449.9,2449.8,2.56285791]
[1728238131374,4.08803,2449.9,2449.8,2.56285791]
[1728238131583,0.8226,2449.9,2449.8,2.56285791]
[1728238133233,0.8226,2449.9,2449.6,2.99000089]
[1728238133548,0.8226,2449.9,2449.8,2.56342844]
[1728238134073,0.8226,2449.9,2449.6,2.99000089]
[1728238134473,0.8226,2449.9,2449.8,2.56352747]
[1728238134783,0.8226,2449.9,2449.8,2.56354329]
[1728238139777,0.8226,2449.9,2449.8,2.56341524]
[1728238140950,0.42678723,2450.1,2449.8,2.56341524]
[1728238141157,0.42678723,2450.1,2449.9,2.56341524]
[1728238141505,0.42678723,2450.1,2449.6,9.52222111]
[1728238141506,3.90454223,2450.2,2450.0,2.56341524]
[1728238143101,7.16967223,2450.2,2449.6,3.26575]
[1728238143309,7.16967223,2450.2,2449.9,2.56272613]
[1728238143504,3.90454223,2450.2,2449.9,2.56276183]
[1728238144432,0.63941223,2450.2,2449.9,2.56276183]
[1728238144621,0.63941223,2450.2,2450.0,2.56276183]
[1728238144797,3.26484,2450.4,2450.0,2.56276183]
[1728238144998,4.33078437,2450.4,2450.2,2.13515437]
[1728238145210,4.33078437,2450.4,2450.3,1.70814541]
[1728238147513,1.06594437,2450.4,2450.3,2.13515437]
[1728238147844,3.26445,2450.7,2450.3,0.62603851]
[1728238148046,3.26445,2450.7,2450.6,2.13394938]
[1728238148347,3.26445,2450.7,2450.6,1.70642199]
[1728238150225,4.04085,2450.7,2450.6,1.70642199]
[1728238150811,4.04085,2450.7,2450.5,1.70642199]
[1728238151017,3.2645,2450.6,2450.5,1.70642199]
[1728238151430,4.46741352,2450.7,2450.4,2.13315183]
[1728238151629,4.46741352,2450.7,2450.6,1.7053289]
[1728238152334,4.46741352,2450.7,2450.5,1.7053289]
[1728238152537,3.2645,2450.6,2450.5,2.13315183]
[1728238152714,3.26463,2450.5,2450.4,2.13315183]
[1728238153514,3.26463,2450.5,2450.4,2.13103899]
[1728238155739,3.26463,2450.5,2450.4,2.13047613]
[1728238157232,3.26463,2450.5,2450.4,1.70403349]
[1728238158259,3.26463,2450.5,2450.4,1.70387266]
[1728238158726,3.26463,2450.5,2450.3,2.12992902]
[1728238159140,3.26463,2450.5,2450.4,2.12992902]
[1728238159345,3.26463,2450.5,2450.3,2.12992902]
[1728238159523,3.26463,2450.5,2450.4,1.70417528]
[1728238159719,3.26463,2450.5,2450.3,2.12992902]
[1728238159957,3.26463,2450.5,2450.4,1.70416915]
[1728238160265,3.26463,2450.5,2450.4,1.70399774]
[1728238162251,3.26463,2450.5,2450.3,2.12992902]
[1728238163131,3.26463,2450.5,2450.4,1.70393623]
[1728238169130,3.26463,2450.5,2450.4,1.70450678]
[1728238169440,3.26463,2450.5,2450.3,2.13055704]
[1728238169647,3.26463,2450.5,2450.4,1.70441136]
[1728238172307,3.26463,2450.5,2450.4,1.70454125]
[1728238173870,3.26463,2450.5,2450.3,2.13083727]
[1728238174546,3.26463,2450.5,2450.4,1.70466895]
[1728238176272,3.26463,2450.5,2450.4,1.70493975]
[1728238176475,3.26463,2450.5,2450.4,1.70495259]
[1728238176676,3.26463,2450.5,2450.4,2.13083727]
[1728238176875,3.26463,2450.5,2450.3,2.13083727]
[1728238177075,3.26463,2450.5,2450.4,1.70491347]
[1728238177388,3.26463,2450.5,2450.4,1.70508448]
[1728238177944,4.01713,2450.5,2450.4,1.70508448]
[1728238178555,3.26477,2450.4,2450.3,2.13083727]
[1728238182755,3.26477,2450.4,2450.3,2.13263346]
[1728238183152,3.26477,2450.4,2450.1,2.55700473]
[1728238183399,3.26477,2450.4,2450.3,2.13293057]
[1728238184103,3.26477,2450.4,2450.1,2.5596109]
[1728238184390,4.01713,2450.5,2450.1,2.5596109]
[1728238184586,4.01713,2450.5,2450.4,1.7067736]
[1728238184889,4.01713,2450.5,2450.4,2.13344124]
[1728238184890,4.4437534,2450.5,2450.4,2.13344124]
[1728238187171,7.7084534,2450.5,2450.2,2.5596109]
[1728238187378,7.7084534,2450.5,2450.3,2.5596109]
[1728238187968,4.4437534,2450.5,2450.3,2.5596109]
[1728238188169,4.01713,2450.5,2450.3,2.5596109]
[1728238188367,4.44374225,2450.5,2450.3,2.5596109]
[1728238189082,4.44374225,2450.5,2450.3,2.56099985]
[1728238189265,7.70847225,2450.5,2450.3,2.56099985]
[1728238190001,3.69124225,2450.5,2450.3,3.37049985]
[1728238190162,3.69124225,2450.5,2450.4,2.56099985]
[1728238190163,3.26463,2450.5,2450.4,2.56099985]
[1728238190358,3.26463,2450.5,2450.3,3.37049985]